[Event "*** Titled Tuesday Blitz"]
[Site "Chess.com"]
[Date "2020.05.26"]
[Round "2"]
[White "Anton_Demchenko"]
[Black "Julianos82"]
[Result "1-0"]
[WhiteElo "2840"]
[BlackElo "2315"]
[TimeControl "180+1"]
[EndTime "10:17:47 PDT"]
[Termination "Anton_Demchenko won by resignation"]

1. e4 {[%clk 0:03:00.9]} 1... c5 {[%clk 0:02:59.4]} 2. Nf3 {[%clk 0:03:00.6]}
2... b6 {[%clk 0:02:59.1]} 3. d4 {[%clk 0:03:00.2]} 3... cxd4 {[%clk 0:02:58.7]}
4. Nxd4 {[%clk 0:03:01.1]} 4... Bb7 {[%clk 0:02:59.2]} 5. Nc3 {[%clk 0:03:02]}
5... a6 {[%clk 0:02:59.6]} 6. Be3 {[%clk 0:03:01.9]} 6... e6 {[%clk 0:02:59.5]}
7. f3 {[%clk 0:03:01.6]} 7... Qc7 {[%clk 0:02:59.2]} 8. Qd2 {[%clk 0:03:02]}
8... Nf6 {[%clk 0:02:52.4]} 9. O-O-O {[%clk 0:03:01]} 9... Bb4 {[%clk
0:02:50.5]} 10. Kb1 {[%clk 0:03:01.5]} 10... O-O {[%clk 0:02:44.6]} 11. a3
{[%clk 0:02:35.9]} 11... Bxc3 {[%clk 0:02:38.3]} 12. Qxc3 {[%clk 0:02:36.8]}
12... Qxc3 {[%clk 0:02:37.5]} 13. bxc3 {[%clk 0:02:37.7]} 13... Nc6 {[%clk
0:02:25.5]} 14. Nb3 {[%clk 0:02:34.9]} 14... d5 {[%clk 0:02:12.5]} 15. e5 {[%clk
0:02:18.9]} 15... Nd7 {[%clk 0:01:44.8]} 16. f4 {[%clk 0:02:18.4]} 16... b5
{[%clk 0:01:39.9]} 17. h4 {[%clk 0:02:06.8]} 17... Rac8 {[%clk 0:01:28.9]} 18.
Bd3 {[%clk 0:02:00.2]} 18... Ne7 {[%clk 0:01:13.7]} 19. Kb2 {[%clk 0:01:57.4]}
19... Rc7 {[%clk 0:01:09.3]} 20. Rh3 {[%clk 0:01:46.5]} 20... Rfc8 {[%clk
0:01:09]} 21. Bf2 {[%clk 0:01:44.6]} 21... d4 {[%clk 0:01:02.9]} 22. cxd4 {[%clk
0:01:15.5]} 22... Bxg2 {[%clk 0:01:02.2]} 23. Rg3 {[%clk 0:01:15.9]} 23... Bd5
{[%clk 0:00:58.4]} 24. Rdg1 {[%clk 0:00:52.2]} 24... g6 {[%clk 0:00:57.1]} 25.
h5 {[%clk 0:00:52.2]} 25... Nf5 {[%clk 0:00:54]} 26. Rh3 {[%clk 0:00:41.4]}
26... Bxb3 {[%clk 0:00:38.1]} 27. cxb3 {[%clk 0:00:41.1]} 27... Nb6 {[%clk
0:00:38.3]} 28. hxg6 {[%clk 0:00:24.2]} 28... fxg6 {[%clk 0:00:37.5]} 29. Rf3
{[%clk 0:00:11.8]} 29... Nd5 {[%clk 0:00:35.8]} 30. Re1 {[%clk 0:00:11.9]} 30...
b4 {[%clk 0:00:31.3]} 31. axb4 {[%clk 0:00:10.9]} 31... Nxb4 {[%clk 0:00:32.2]}
32. Be4 {[%clk 0:00:11.5]} 32... a5 {[%clk 0:00:29.5]} 33. Re2 {[%clk
0:00:11.5]} 33... Ra7 {[%clk 0:00:27.3]} 34. d5 {[%clk 0:00:11.4]} 34... Nxd5
{[%clk 0:00:26]} 35. Bxd5 {[%clk 0:00:10.5]} 35... Ra6 {[%clk 0:00:16.8]} 36.
Bc4 {[%clk 0:00:09.7]} 36... Rac6 {[%clk 0:00:17]} 37. Rc3 {[%clk 0:00:08.8]}
37... a4 {[%clk 0:00:16.5]} 38. Bxe6+ {[%clk 0:00:08.6]} 38... Kg7 {[%clk
0:00:15.9]} 39. Bxc8 {[%clk 0:00:07.9]} 1-0

[Event "*** Titled Tuesday Blitz"]
[Site "Chess.com"]
[Date "2020.05.26"]
[Round "2"]
[White "grunbergmihai"]
[Black "BJthechessgod"]
[Result "0-1"]
[WhiteElo "2374"]
[BlackElo "2120"]
[TimeControl "180+1"]
[EndTime "10:17:47 PDT"]
[Termination "BJthechessgod won on time"]

1. e4 {[%clk 0:03:00.9]} 1... c5 {[%clk 0:02:59.6]} 2. Nf3 {[%clk 0:02:52.3]}
2... Nc6 {[%clk 0:02:59.7]} 3. d4 {[%clk 0:02:51.9]} 3... cxd4 {[%clk
0:03:00.6]} 4. Nxd4 {[%clk 0:02:52.1]} 4... g6 {[%clk 0:03:00.9]} 5. c4 {[%clk
0:02:51.8]} 5... Nf6 {[%clk 0:03:00.6]} 6. Nc3 {[%clk 0:02:50]} 6... d6 {[%clk
0:03:00.7]} 7. Be2 {[%clk 0:02:49.1]} 7... Nxd4 {[%clk 0:02:59.5]} 8. Qxd4
{[%clk 0:02:48.9]} 8... Bg7 {[%clk 0:03:00.4]} 9. Bg5 {[%clk 0:02:47.7]} 9...
O-O {[%clk 0:02:57.6]} 10. f3 {[%clk 0:02:46.1]} 10... Be6 {[%clk 0:02:49.9]}
11. Qd2 {[%clk 0:02:44.2]} 11... a5 {[%clk 0:02:45.1]} 12. Rc1 {[%clk
0:02:40.1]} 12... a4 {[%clk 0:02:41.2]} 13. O-O {[%clk 0:02:35.1]} 13... Qa5
{[%clk 0:02:41.5]} 14. Rfd1 {[%clk 0:02:33.3]} 14... Rfc8 {[%clk 0:02:40.1]} 15.
Nd5 {[%clk 0:02:05.2]} 15... Qxd2 {[%clk 0:02:26]} 16. Rxd2 {[%clk 0:02:03.8]}
16... Bxd5 {[%clk 0:02:23.3]} 17. exd5 {[%clk 0:02:01.7]} 17... h6 {[%clk
0:02:06.1]} 18. Be3 {[%clk 0:02:00.8]} 18... Nd7 {[%clk 0:02:04.3]} 19. Kf2
{[%clk 0:01:54.7]} 19... Nc5 {[%clk 0:02:01.6]} 20. h4 {[%clk 0:01:51]} 20...
Rc7 {[%clk 0:01:56.8]} 21. g4 {[%clk 0:01:49.8]} 21... a3 {[%clk 0:01:50.6]} 22.
b3 {[%clk 0:01:39.7]} 22... Bb2 {[%clk 0:01:44.8]} 23. Rb1 {[%clk 0:01:36.2]}
23... Bf6 {[%clk 0:01:17.2]} 24. Kg3 {[%clk 0:01:28.3]} 24... Be5+ {[%clk
0:01:11.7]} 25. Kg2 {[%clk 0:01:28]} 25... Rac8 {[%clk 0:01:08.6]} 26. b4 {[%clk
0:01:22.4]} 26... Na4 {[%clk 0:01:07.7]} 27. Rb3 {[%clk 0:01:22.2]} 27... Bb2
{[%clk 0:01:07.5]} 28. Bxh6 {[%clk 0:01:20.2]} 28... Nc3 {[%clk 0:01:03.5]} 29.
Bd3 {[%clk 0:00:54.9]} 29... Nxa2 {[%clk 0:00:43.9]} 30. Be3 {[%clk 0:00:53.6]}
30... Nxb4 {[%clk 0:00:39.4]} 31. Rdxb2 {[%clk 0:00:41.8]} 31... Nxd3 {[%clk
0:00:34.5]} 32. Ra2 {[%clk 0:00:39.5]} 32... Ne5 {[%clk 0:00:26]} 33. c5 {[%clk
0:00:39.4]} 33... Nc4 {[%clk 0:00:22.7]} 34. cxd6 {[%clk 0:00:30.7]} 34... Nxe3+
{[%clk 0:00:19]} 35. Rxe3 {[%clk 0:00:30.3]} 35... Rc2+ {[%clk 0:00:19.7]} 36.
Re2 {[%clk 0:00:28.2]} 36... Rxe2+ {[%clk 0:00:18]} 37. Rxe2 {[%clk 0:00:28]}
37... exd6 {[%clk 0:00:18.8]} 38. Ra2 {[%clk 0:00:27.6]} 38... Ra8 {[%clk
0:00:18.7]} 39. Kf2 {[%clk 0:00:27.6]} 39... b5 {[%clk 0:00:19.4]} 40. Ke3
{[%clk 0:00:27.5]} 40... b4 {[%clk 0:00:20]} 0-1

[Event "*** Titled Tuesday Blitz"]
[Site "Chess.com"]
[Date "2020.05.26"]
[Round "2"]
[White "CarrotsandPizza"]
[Black "Oneofmyturns"]
[Result "1/2-1/2"]
[WhiteElo "2378"]
[BlackElo "2656"]
[TimeControl "180+1"]
[EndTime "10:17:48 PDT"]
[Termination "Game drawn - insufficient material"]

1. e4 {[%clk 0:03:00.9]} 1... c6 {[%clk 0:02:56.5]} 2. d4 {[%clk 0:03:00.1]}
2... d5 {[%clk 0:02:57]} 3. Nc3 {[%clk 0:03:00.8]} 3... dxe4 {[%clk 0:02:56.7]}
4. Nxe4 {[%clk 0:03:01.4]} 4... Bf5 {[%clk 0:02:57.3]} 5. Ng3 {[%clk 0:03:01.2]}
5... Bg6 {[%clk 0:02:57.9]} 6. h4 {[%clk 0:03:01.9]} 6... h6 {[%clk 0:02:58]} 7.
f4 {[%clk 0:03:02.6]} 7... e6 {[%clk 0:02:56.9]} 8. Nf3 {[%clk 0:03:03.1]} 8...
Nf6 {[%clk 0:02:51.9]} 9. h5 {[%clk 0:03:03.3]} 9... Bh7 {[%clk 0:02:51]} 10.
Bd3 {[%clk 0:03:03.9]} 10... Bxd3 {[%clk 0:02:50.3]} 11. Qxd3 {[%clk 0:03:04.8]}
11... Qc7 {[%clk 0:02:44.9]} 12. Bd2 {[%clk 0:03:05.1]} 12... Nbd7 {[%clk
0:02:45.1]} 13. Ne5 {[%clk 0:03:04.3]} 13... c5 {[%clk 0:02:33]} 14. O-O-O
{[%clk 0:03:03.4]} 14... cxd4 {[%clk 0:02:32.4]} 15. Qxd4 {[%clk 0:03:04.3]}
15... Bc5 {[%clk 0:02:32]} 16. Qa4 {[%clk 0:03:04.7]} 16... O-O {[%clk
0:02:24.3]} 17. Nxd7 {[%clk 0:03:03.2]} 17... Qxd7 {[%clk 0:02:16.5]} 18. Qxd7
{[%clk 0:03:02.1]} 18... Nxd7 {[%clk 0:02:17.4]} 19. Ne4 {[%clk 0:03:00.4]}
19... Be7 {[%clk 0:01:54]} 20. Bc3 {[%clk 0:02:48.4]} 20... Rfd8 {[%clk
0:01:51.4]} 21. g4 {[%clk 0:02:47]} 21... Nb6 {[%clk 0:01:50]} 22. g5 {[%clk
0:02:43]} 22... hxg5 {[%clk 0:01:36.2]} 23. fxg5 {[%clk 0:02:42.4]} 23... Nd5
{[%clk 0:01:34.1]} 24. Be5 {[%clk 0:02:42.3]} 24... f6 {[%clk 0:01:16.2]} 25.
gxf6 {[%clk 0:02:38.9]} 25... gxf6 {[%clk 0:01:17.1]} 26. Bd4 {[%clk 0:02:38.1]}
26... Kf7 {[%clk 0:01:10.2]} 27. h6 {[%clk 0:02:34.3]} 27... Rh8 {[%clk
0:01:05.2]} 28. c4 {[%clk 0:02:31.5]} 28... Nf4 {[%clk 0:01:01.2]} 29. Be3
{[%clk 0:02:28]} 29... Rac8 {[%clk 0:00:50.7]} 30. b3 {[%clk 0:02:24.9]} 30...
Nd5 {[%clk 0:00:48.2]} 31. Bd4 {[%clk 0:01:40.5]} 31... b5 {[%clk 0:00:46.1]}
32. c5 {[%clk 0:01:27]} 32... Rh7 {[%clk 0:00:34.1]} 33. Kb1 {[%clk 0:01:24.3]}
33... f5 {[%clk 0:00:33.9]} 34. Nd6+ {[%clk 0:01:19.1]} 34... Bxd6 {[%clk
0:00:31.5]} 35. cxd6 {[%clk 0:01:20]} 35... Ke8 {[%clk 0:00:27.4]} 36. Bg7
{[%clk 0:01:10]} 36... Kd7 {[%clk 0:00:27.4]} 37. Rc1 {[%clk 0:01:09.6]} 37...
Rxc1+ {[%clk 0:00:24.6]} 38. Rxc1 {[%clk 0:01:08.9]} 38... Kxd6 {[%clk
0:00:25.5]} 39. Rc8 {[%clk 0:01:09.2]} 39... f4 {[%clk 0:00:21.4]} 40. Rh8
{[%clk 0:01:08.1]} 40... Rxh8 {[%clk 0:00:21]} 41. Bxh8 {[%clk 0:01:09]} 41...
Ne7 {[%clk 0:00:11]} 42. Bd4 {[%clk 0:00:57.2]} 42... e5 {[%clk 0:00:09.7]} 43.
Bxa7 {[%clk 0:00:56.5]} 43... Ke6 {[%clk 0:00:08.7]} 44. h7 {[%clk 0:00:56.1]}
44... Ng6 {[%clk 0:00:08.8]} 45. Kc2 {[%clk 0:00:55.9]} 45... Kf7 {[%clk
0:00:09.1]} 46. a4 {[%clk 0:00:56.2]} 46... bxa4 {[%clk 0:00:08.9]} 47. bxa4
{[%clk 0:00:57.1]} 47... Kg7 {[%clk 0:00:09.4]} 48. a5 {[%clk 0:00:57.5]} 48...
Ne7 {[%clk 0:00:08.6]} 49. Bb8 {[%clk 0:00:54.7]} 49... Nc6 {[%clk 0:00:08.7]}
50. Bxe5+ {[%clk 0:00:54.3]} 50... Nxe5 {[%clk 0:00:06.5]} 51. a6 {[%clk
0:00:53]} 51... Nc6 {[%clk 0:00:06.5]} 52. Kd3 {[%clk 0:00:53]} 52... Nb4+
{[%clk 0:00:04.7]} 53. Ke4 {[%clk 0:00:51.7]} 53... Nxa6 {[%clk 0:00:05.6]} 54.
Kxf4 {[%clk 0:00:50.9]} 54... Kxh7 {[%clk 0:00:06]} 1/2-1/2

[Event "*** Titled Tuesday Blitz"]
[Site "Chess.com"]
[Date "2020.05.26"]
[Round "2"]
[White "moro182"]
[Black "Aleksandr_Kozak"]
[Result "0-1"]
[WhiteElo "2632"]
[BlackElo "2336"]
[TimeControl "180+1"]
[EndTime "10:17:51 PDT"]
[Termination "Aleksandr_Kozak won by resignation"]

1. d4 {[%clk 0:03:00.9]} 1... g6 {[%clk 0:02:58.9]} 2. c4 {[%clk 0:03:01]} 2...
Bg7 {[%clk 0:02:58.4]} 3. g3 {[%clk 0:03:01.6]} 3... d6 {[%clk 0:02:56.1]} 4.
Bg2 {[%clk 0:03:01]} 4... Nd7 {[%clk 0:02:55.4]} 5. b3 {[%clk 0:03:00.3]} 5...
e5 {[%clk 0:02:53.1]} 6. Bb2 {[%clk 0:03:00.5]} 6... Ne7 {[%clk 0:02:50.1]} 7.
Nf3 {[%clk 0:03:00.2]} 7... O-O {[%clk 0:02:48.7]} 8. O-O {[%clk 0:02:59.9]}
8... h6 {[%clk 0:02:46.4]} 9. Nc3 {[%clk 0:02:58.1]} 9... f5 {[%clk 0:02:43.4]}
10. dxe5 {[%clk 0:02:57.1]} 10... dxe5 {[%clk 0:02:42.4]} 11. e4 {[%clk
0:02:35.7]} 11... f4 {[%clk 0:02:37.4]} 12. Qc2 {[%clk 0:02:35.6]} 12... g5
{[%clk 0:02:33.1]} 13. Rfd1 {[%clk 0:02:28.8]} 13... c6 {[%clk 0:02:30.6]} 14.
h4 {[%clk 0:02:14.4]} 14... fxg3 {[%clk 0:01:52.6]} 15. fxg3 {[%clk 0:02:13.7]}
15... g4 {[%clk 0:01:48.7]} 16. Nh2 {[%clk 0:02:07.4]} 16... Qb6+ {[%clk
0:01:48.1]} 17. Kh1 {[%clk 0:02:07.5]} 17... Nf6 {[%clk 0:01:44]} 18. Na4 {[%clk
0:02:03.1]} 18... Qc7 {[%clk 0:01:42.4]} 19. Rf1 {[%clk 0:01:32.9]} 19... b6
{[%clk 0:01:34]} 20. Rad1 {[%clk 0:01:26.9]} 20... Be6 {[%clk 0:01:32.5]} 21.
Ba3 {[%clk 0:01:21.6]} 21... Rad8 {[%clk 0:01:28.4]} 22. Nb2 {[%clk 0:01:20.4]}
22... c5 {[%clk 0:01:23.4]} 23. Na4 {[%clk 0:01:13.2]} 23... Nc6 {[%clk
0:01:21.4]} 24. Nc3 {[%clk 0:01:13.4]} 24... Nd4 {[%clk 0:01:20.3]} 25. Qd3
{[%clk 0:01:11.4]} 25... Nf3 {[%clk 0:00:48.2]} 26. Nd5 {[%clk 0:01:08.3]} 26...
Bxd5 {[%clk 0:00:47.8]} 27. cxd5 {[%clk 0:01:04.2]} 27... Nh5 {[%clk 0:00:47.6]}
28. Nxf3 {[%clk 0:00:49.6]} 28... Nxg3+ {[%clk 0:00:45.3]} 29. Kg1 {[%clk
0:00:50.1]} 29... Nxf1 {[%clk 0:00:31.8]} 30. Ne1 {[%clk 0:00:46.2]} 30... Qe7
{[%clk 0:00:27.9]} 31. Bxf1 {[%clk 0:00:42.8]} 31... Qxh4 {[%clk 0:00:27.1]} 32.
Qe2 {[%clk 0:00:25.3]} 32... Rd6 {[%clk 0:00:20.3]} 33. Ng2 {[%clk 0:00:22]}
33... Qh5 {[%clk 0:00:20.1]} 34. Rd3 {[%clk 0:00:17.6]} 34... Rdf6 {[%clk
0:00:19.7]} 35. Rd1 {[%clk 0:00:15.5]} 35... Rf3 {[%clk 0:00:19]} 36. d6 {[%clk
0:00:15.2]} 36... g3 {[%clk 0:00:18.2]} 37. Ne3 {[%clk 0:00:11.7]} 37... Rxf1+
{[%clk 0:00:12.1]} 38. Rxf1 {[%clk 0:00:12.2]} 38... Qxe2 {[%clk 0:00:11.1]} 39.
Rxf8+ {[%clk 0:00:12.2]} 39... Bxf8 {[%clk 0:00:09.9]} 40. Ng4 {[%clk
0:00:12.5]} 40... Qxg4 {[%clk 0:00:08.3]} 0-1

[Event "*** Titled Tuesday Blitz"]
[Site "Chess.com"]
[Date "2020.05.26"]
[Round "2"]
[White "elamier"]
[Black "GM4life"]
[Result "1/2-1/2"]
[WhiteElo "2101"]
[BlackElo "2379"]
[TimeControl "180+1"]
[EndTime "10:17:51 PDT"]
[Termination "Game drawn by repetition"]

1. d4 {[%clk 0:03:00.9]} 1... Nf6 {[%clk 0:02:57.5]} 2. Bg5 {[%clk 0:03:01.2]}
2... g6 {[%clk 0:02:53.3]} 3. Bxf6 {[%clk 0:03:00.9]} 3... exf6 {[%clk 0:02:51]}
4. e3 {[%clk 0:03:01.3]} 4... Bg7 {[%clk 0:02:50.5]} 5. g3 {[%clk 0:02:58.2]}
5... O-O {[%clk 0:02:51.4]} 6. Bg2 {[%clk 0:02:58.2]} 6... c5 {[%clk 0:02:50.4]}
7. c3 {[%clk 0:02:57]} 7... f5 {[%clk 0:02:48.7]} 8. Ne2 {[%clk 0:02:56.3]} 8...
Nc6 {[%clk 0:02:47.9]} 9. O-O {[%clk 0:02:55.3]} 9... d6 {[%clk 0:02:43.9]} 10.
Nd2 {[%clk 0:02:54.7]} 10... Re8 {[%clk 0:02:43.4]} 11. a4 {[%clk 0:02:45.5]}
11... Bd7 {[%clk 0:02:37.5]} 12. Nc4 {[%clk 0:02:38.7]} 12... Qc7 {[%clk
0:02:16.7]} 13. Nf4 {[%clk 0:02:33.3]} 13... Ne7 {[%clk 0:02:03.9]} 14. dxc5
{[%clk 0:02:08]} 14... dxc5 {[%clk 0:02:02.5]} 15. Qd6 {[%clk 0:02:07.9]} 15...
Rac8 {[%clk 0:01:57.7]} 16. Qxc7 {[%clk 0:02:05.5]} 16... Rxc7 {[%clk
0:01:57.9]} 17. Nd6 {[%clk 0:02:05.3]} 17... Rb8 {[%clk 0:01:55.2]} 18. Nd5
{[%clk 0:02:04.7]} 18... Nxd5 {[%clk 0:01:51.9]} 19. Bxd5 {[%clk 0:02:05.1]}
19... Bc6 {[%clk 0:01:46.4]} 20. Rfd1 {[%clk 0:01:58.4]} 20... Rd8 {[%clk
0:01:29.9]} 21. Bxc6 {[%clk 0:01:56.7]} 21... Rxc6 {[%clk 0:01:25.9]} 22. Nb5
{[%clk 0:01:56.7]} 22... Rxd1+ {[%clk 0:01:21.3]} 23. Rxd1 {[%clk 0:01:56.8]}
23... a6 {[%clk 0:01:21.5]} 24. Rd8+ {[%clk 0:01:54.7]} 24... Bf8 {[%clk
0:01:21.6]} 25. Na3 {[%clk 0:01:39.8]} 25... Kg7 {[%clk 0:01:13.7]} 26. Nc4
{[%clk 0:01:39.4]} 26... b5 {[%clk 0:01:02.4]} 27. Ne5 {[%clk 0:01:28.2]} 27...
Rd6 {[%clk 0:01:00.9]} 28. Ra8 {[%clk 0:01:11.4]} 28... bxa4 {[%clk 0:00:58.2]}
29. Ra7 {[%clk 0:01:10.6]} 29... Rf6 {[%clk 0:00:47.5]} 30. Nd7 {[%clk
0:01:09.3]} 30... Re6 {[%clk 0:00:38.4]} 31. Nxf8 {[%clk 0:01:05.6]} 31... Kxf8
{[%clk 0:00:38.2]} 32. Kf1 {[%clk 0:01:00.6]} 32... Rb6 {[%clk 0:00:35.8]} 33.
Kg2 {[%clk 0:01:00.4]} 33... Rxb2 {[%clk 0:00:33.9]} 34. Rxa6 {[%clk 0:01:00.2]}
34... Rb3 {[%clk 0:00:23.6]} 35. Rxa4 {[%clk 0:00:55.7]} 35... Rxc3 {[%clk
0:00:23.9]} 36. Ra8+ {[%clk 0:00:53.8]} 36... Kg7 {[%clk 0:00:23.4]} 37. Rc8
{[%clk 0:00:54.2]} 37... Kf6 {[%clk 0:00:23.1]} 38. Rc7 {[%clk 0:00:53.2]} 38...
h5 {[%clk 0:00:22.5]} 39. h4 {[%clk 0:00:52.2]} 39... Ke6 {[%clk 0:00:22.7]} 40.
Kf3 {[%clk 0:00:51.6]} 40... f6 {[%clk 0:00:20]} 41. Rg7 {[%clk 0:00:46.1]}
41... c4 {[%clk 0:00:15]} 42. Rxg6 {[%clk 0:00:45.8]} 42... Rc2 {[%clk
0:00:15.9]} 43. Rg8 {[%clk 0:00:43.5]} 43... c3 {[%clk 0:00:16.1]} 44. Rc8
{[%clk 0:00:43.2]} 44... Ke5 {[%clk 0:00:16.2]} 45. Rc7 {[%clk 0:00:42.1]} 45...
Rc1 {[%clk 0:00:15.9]} 46. Rc8 {[%clk 0:00:41.3]} 46... Kd5 {[%clk 0:00:14.3]}
47. Ke2 {[%clk 0:00:36.9]} 47... Rc2+ {[%clk 0:00:14.1]} 48. Kf3 {[%clk
0:00:36.5]} 48... Rc1 {[%clk 0:00:14.2]} 49. Ke2 {[%clk 0:00:36.6]} 49... Ke4
{[%clk 0:00:14.5]} 50. Re8+ {[%clk 0:00:27]} 50... Kd5 {[%clk 0:00:14.4]} 51.
Rc8 {[%clk 0:00:26.4]} 1/2-1/2

[Event "*** Titled Tuesday Blitz"]
[Site "Chess.com"]
[Date "2020.05.26"]
[Round "2"]
[White "Walter_White_Poland"]
[Black "zmeeed67"]
[Result "0-1"]
[WhiteElo "2200"]
[BlackElo "2430"]
[TimeControl "180+1"]
[EndTime "10:17:52 PDT"]
[Termination "zmeeed67 won by checkmate"]

1. e4 {[%clk 0:03:00.9]} 1... c5 {[%clk 0:02:59.9]} 2. c4 {[%clk 0:03:00.2]}
2... Nc6 {[%clk 0:02:58.2]} 3. Nc3 {[%clk 0:03:00.1]} 3... g6 {[%clk 0:02:55.4]}
4. g3 {[%clk 0:03:00.2]} 4... Bg7 {[%clk 0:02:55.3]} 5. Bg2 {[%clk 0:03:00.5]}
5... e6 {[%clk 0:02:55.4]} 6. Nge2 {[%clk 0:03:00.4]} 6... Nge7 {[%clk
0:02:55.5]} 7. O-O {[%clk 0:03:00.1]} 7... O-O {[%clk 0:02:55]} 8. d3 {[%clk
0:02:56.3]} 8... d6 {[%clk 0:02:55.3]} 9. Rb1 {[%clk 0:02:55.6]} 9... a5 {[%clk
0:02:38.7]} 10. Nb5 {[%clk 0:02:52.6]} 10... Nd4 {[%clk 0:02:31]} 11. Nexd4
{[%clk 0:02:50]} 11... cxd4 {[%clk 0:02:31.9]} 12. Bf4 {[%clk 0:02:36.2]} 12...
e5 {[%clk 0:02:27.6]} 13. Bd2 {[%clk 0:02:35]} 13... f5 {[%clk 0:01:59]} 14. f4
{[%clk 0:02:27.5]} 14... fxe4 {[%clk 0:01:57.5]} 15. Bxe4 {[%clk 0:02:11.5]}
15... Bh3 {[%clk 0:01:24.3]} 16. Bxb7 {[%clk 0:02:09.4]} 16... Bxf1 {[%clk
0:01:19.8]} 17. Qxf1 {[%clk 0:02:02.8]} 17... Rb8 {[%clk 0:01:17.9]} 18. Bg2
{[%clk 0:01:53.4]} 18... d5 {[%clk 0:01:15.1]} 19. a4 {[%clk 0:01:43.5]} 19...
dxc4 {[%clk 0:01:03.1]} 20. dxc4 {[%clk 0:01:41.4]} 20... exf4 {[%clk
0:01:03.1]} 21. gxf4 {[%clk 0:00:57.8]} 21... Nf5 {[%clk 0:00:50.1]} 22. Bd5+
{[%clk 0:00:44]} 22... Kh8 {[%clk 0:00:50]} 23. Re1 {[%clk 0:00:38.6]} 23... Ne3
{[%clk 0:00:41.8]} 24. Bxe3 {[%clk 0:00:13.5]} 24... dxe3 {[%clk 0:00:42.7]} 25.
Qd3 {[%clk 0:00:10.4]} 25... Rxf4 {[%clk 0:00:38.9]} 26. Nc3 {[%clk 0:00:03.4]}
26... Rg4+ {[%clk 0:00:24.7]} 27. Kh1 {[%clk 0:00:02.8]} 27... Rxb2 {[%clk
0:00:18.3]} 28. Qxe3 {[%clk 0:00:03.1]} 28... h5 {[%clk 0:00:08.1]} 29. Qe8+
{[%clk 0:00:03.1]} 29... Qxe8 {[%clk 0:00:08.2]} 30. Rxe8+ {[%clk 0:00:04]}
30... Kh7 {[%clk 0:00:09.1]} 31. Bg8+ {[%clk 0:00:04.1]} 31... Kh6 {[%clk
0:00:09]} 32. Nd1 {[%clk 0:00:02.6]} 32... Rd2 {[%clk 0:00:08.4]} 33. Re1 {[%clk
0:00:02.6]} 33... Bd4 {[%clk 0:00:04.7]} 34. Bd5 {[%clk 0:00:01]} 34... Rh4
{[%clk 0:00:04.9]} 35. Rf1 {[%clk 0:00:01.7]} 35... Rhxh2# {[%clk 0:00:04.9]}
0-1

[Event "*** Titled Tuesday Blitz"]
[Site "Chess.com"]
[Date "2020.05.26"]
[Round "2"]
[White "sofaceindisguise"]
[Black "eCztery"]
[Result "0-1"]
[WhiteElo "2622"]
[BlackElo "2327"]
[TimeControl "180+1"]
[EndTime "10:17:53 PDT"]
[Termination "eCztery won by resignation"]

1. d4 {[%clk 0:02:30.5]} 1... Nf6 {[%clk 0:02:59.5]} 2. Nf3 {[%clk 0:02:30.8]}
2... d5 {[%clk 0:02:59.3]} 3. c4 {[%clk 0:02:31.7]} 3... e6 {[%clk 0:02:58.7]}
4. Bg5 {[%clk 0:02:30.3]} 4... Nbd7 {[%clk 0:02:56.8]} 5. e3 {[%clk 0:02:29.6]}
5... Bb4+ {[%clk 0:02:56.5]} 6. Nc3 {[%clk 0:02:27.1]} 6... c5 {[%clk
0:02:55.8]} 7. a3 {[%clk 0:02:25.9]} 7... Bxc3+ {[%clk 0:02:54.2]} 8. bxc3
{[%clk 0:02:26.8]} 8... Qa5 {[%clk 0:02:54.8]} 9. Qc2 {[%clk 0:02:26.1]} 9...
Ne4 {[%clk 0:02:55.2]} 10. cxd5 {[%clk 0:02:22]} 10... exd5 {[%clk 0:02:51.9]}
11. Rc1 {[%clk 0:02:19.2]} 11... Nxg5 {[%clk 0:02:45.4]} 12. Nxg5 {[%clk
0:02:16.9]} 12... Qxa3 {[%clk 0:02:45.4]} 13. Nxh7 {[%clk 0:02:13.9]} 13... cxd4
{[%clk 0:02:37]} 14. exd4 {[%clk 0:02:03.6]} 14... Rxh7 {[%clk 0:02:12.7]} 15.
Bd3 {[%clk 0:01:55.8]} 15... Rh6 {[%clk 0:02:07.9]} 16. O-O {[%clk 0:01:53.5]}
16... Qd6 {[%clk 0:02:07.2]} 17. g3 {[%clk 0:01:51.4]} 17... Nb6 {[%clk
0:02:01]} 18. Rfe1+ {[%clk 0:01:50]} 18... Kf8 {[%clk 0:02:01.3]} 19. Re5 {[%clk
0:01:48]} 19... Bd7 {[%clk 0:01:53.9]} 20. Rce1 {[%clk 0:01:47.9]} 20... Re8
{[%clk 0:01:54]} 21. Qa2 {[%clk 0:01:44.2]} 21... a6 {[%clk 0:01:45.5]} 22. Qa5
{[%clk 0:01:33.5]} 22... f6 {[%clk 0:01:36.1]} 23. Rxe8+ {[%clk 0:01:27.2]}
23... Bxe8 {[%clk 0:01:37]} 24. Bf5 {[%clk 0:01:24.9]} 24... Nc4 {[%clk
0:01:24.5]} 25. Qa1 {[%clk 0:01:12.8]} 25... Bd7 {[%clk 0:01:15.5]} 26. Bd3
{[%clk 0:01:06.6]} 26... Bg4 {[%clk 0:01:08.1]} 27. Qa4 {[%clk 0:00:59.2]} 27...
b5 {[%clk 0:01:04.9]} 28. Qc2 {[%clk 0:00:54.3]} 28... f5 {[%clk 0:01:01.5]} 29.
Bxf5 {[%clk 0:00:53.8]} 29... Bf3 {[%clk 0:00:48.3]} 30. Qd3 {[%clk 0:00:50]}
30... Bh5 {[%clk 0:00:39.1]} 31. Bh3 {[%clk 0:00:24.4]} 31... Qf6 {[%clk
0:00:32]} 32. f4 {[%clk 0:00:16.7]} 32... Bg6 {[%clk 0:00:27.8]} 33. Qe2 {[%clk
0:00:16.2]} 33... Be4 {[%clk 0:00:28.1]} 34. Bg2 {[%clk 0:00:15.7]} 34... Nd6
{[%clk 0:00:24.7]} 35. Qg4 {[%clk 0:00:15.2]} 35... Qf5 {[%clk 0:00:20.6]} 36.
Qd1 {[%clk 0:00:13.9]} 36... Bxg2 {[%clk 0:00:19.2]} 37. Re5 {[%clk 0:00:13]}
37... Qh3 {[%clk 0:00:16.8]} 38. Qe2 {[%clk 0:00:13.3]} 38... Qxh2+ {[%clk
0:00:16.5]} 39. Kf2 {[%clk 0:00:14.2]} 39... Be4+ {[%clk 0:00:16]} 40. Ke3
{[%clk 0:00:14.6]} 40... Qxg3+ {[%clk 0:00:15.1]} 41. Kd2 {[%clk 0:00:14.6]}
41... Rh2 {[%clk 0:00:15.6]} 0-1